bitfinex/quotes_ETHUSD_20250324
["timestamp","ask_amount","ask_price","bid_price","bid_amount"]
[1742841620785,4.99909227,2089.9,2089.6,0.7851]
[1742841620987,0.21249289,2089.8,2089.6,0.7851]
[1742841621187,4.7848,2090.0,2089.6,0.7851]
[1742841621388,4.99805214,2089.9,2089.6,0.7851]
[1742841621586,4.78515,2089.8,2089.6,0.7851]
[1742841621789,9.5705,2089.8,2089.4,4.746]
[1742841622093,0.2120336,2089.7,2089.4,9.53202]
[1742841622398,0.21212484,2089.6,2089.4,4.746]
[1742841622799,0.21166546,2089.5,2089.4,9.53205]
[1742841623002,4.78515,2089.8,2089.4,4.746]
[1742841623330,0.21258418,2089.7,2089.5,4.78574]
[1742841623529,0.21258418,2089.7,2089.4,10.6188437]
[1742841623734,4.78472,2090.0,2089.4,10.6188437]
[1742841623941,0.21283064,2089.6,2089.4,5.8327937]
[1742841624243,4.78516,2089.8,2089.4,10.6187037]
[1742841624409,0.21237129,2089.5,2089.4,10.6187037]
[1742841624607,4.78427,2090.2,2089.4,10.6187037]
[1742841624608,4.78554,2089.7,2089.4,4.746]
[1742841624807,4.7857,2089.6,2089.4,4.746]
[1742841625337,0.21247988,2089.5,2089.4,4.746]
[1742841626154,4.78543,2089.7,2089.4,4.746]
[1742841626313,4.78515,2089.8,2089.4,4.746]
[1742841626314,0.21302272,2089.5,2089.4,4.746]
[1742841626511,4.78515,2089.8,2089.4,13.1488077]
[1742841626716,0.21302272,2089.5,2089.4,13.1487577]
[1742841626943,9.56994,2089.9,2089.4,13.1487577]
[1742841627249,4.78516,2089.8,2089.4,13.1487577]
[1742841627546,4.99956054,2089.8,2089.4,13.1487577]
[1742841628818,9.78490054,2089.8,2089.4,8.3628777]
[1742841629117,4.78562,2089.6,2089.4,4.746]
[1742841629514,4.99830988,2089.5,2089.3,0.7762]
[1742841629753,4.99830988,2089.5,2089.2,25.301]
[1742841629754,0.21247988,2089.5,2089.4,4.734]
[1742841629911,0.21247988,2089.5,2089.4,9.52006]
[1742841630116,9.57071,2089.8,2089.4,4.734]
[1742841630348,0.21340276,2089.5,2089.4,4.734]
[1742841630545,4.78535,2089.8,2089.4,4.734]
[1742841630748,0.21340276,2089.5,2089.4,9.48366]
[1742841630921,0.7797,2090.4,2089.9,4.78479]
[1742841631116,4.78408,2090.3,2090.0,4.745]
[1742841631445,0.37152483,2090.3,2090.0,4.745]
[1742841631646,4.78431,2090.2,2090.0,4.745]
[1742841631845,5.154528,2090.2,2090.0,4.745]
[1742841632221,1.3640708,2090.2,2090.0,4.745]
[1742841632416,0.370218,2090.2,2090.0,4.745]
[1742841632617,4.78285,2090.8,2090.1,5.58016]
[1742841632822,4.78285,2090.8,2090.1,0.7957]
[1742841632823,0.34188228,2090.7,2090.1,0.7957]
[1742841633021,0.34188228,2090.7,2090.3,4.78385]
[1742841633236,9.5659,2090.8,2090.3,4.78385]
[1742841633441,5.12745044,2090.7,2090.3,4.78385]
[1742841633629,0.34429044,2090.7,2090.3,4.78385]
[1742841633825,6.11153121,2090.8,2090.3,4.78385]
[1742841634145,4.78332,2090.6,2090.2,4.78423]
[1742841634353,5.12824032,2090.7,2090.2,9.56828]
[1742841634526,9.13e-06,2090.5,2090.4,5.54597]
[1742841634719,2.92401208,2091.0,2090.4,5.54597]
[1742841634720,0.28813318,2090.6,2090.5,5.54574]
[1742841634919,0.12287,2091.0,2090.7,4.7829]
[1742841635147,0.12287,2091.0,2090.6,4.78327]
[1742841635353,0.26152835,2090.9,2090.7,4.78299]
[1742841635647,0.26152835,2090.9,2090.6,1.51089]
[1742841636018,0.26152835,2090.9,2090.7,0.0478251]
[1742841636346,0.26152835,2090.9,2090.8,4.78285]
[1742841636564,8.35e-06,2090.9,2090.8,5.60525]
[1742841636750,8.35e-06,2090.9,2090.8,10.27826121]
[1742841636751,7e-07,2090.9,2090.8,10.27826121]
[1742841637056,0.12287,2091.0,2090.9,5.53482]
[1742841637250,0.01,2091.4,2091.3,4.78171]
[1742841637438,0.01,2091.4,2091.3,8.58171329]
[1742841637621,0.01,2091.4,2091.3,8.53391]
[1742841637836,0.01,2091.4,2091.3,10.822201]
[1742841638462,4.77897,2092.5,2092.0,4.77999]
[1742841638774,5.0,2092.7,2092.1,4.802]
[1742841638938,0.14295354,2092.4,2092.2,4.854]
[1742841639140,9.77854,2092.7,2092.2,9.63361]
[1742841639340,0.13075534,2092.3,2092.2,4.854]
[1742841639542,4.77897,2092.5,2092.0,0.7714]
[1742841639739,5.46017534,2092.3,2092.2,4.857]
[1742841639963,4.7798,2092.2,2091.6,26.0843]
[1742841640174,4.77989,2092.1,2091.7,4.857]
[1742841640385,4.91017974,2092.1,2091.7,4.857]
[1742841640542,4.91017974,2092.1,2091.7,9.207347]
[1742841640743,4.78034,2091.9,2091.8,4.857]
[1742841640970,4.78034,2091.9,2091.6,26.0843]
[1742841641162,4.78064,2091.8,2091.7,4.856]
[1742841641342,4.90981976,2091.9,2091.7,4.856]
[1742841641545,0.1281648,2091.8,2091.7,4.856]
[1742841642254,4.78044,2091.9,2091.7,4.856]
[1742841642472,5.0,2092.7,2091.8,0.7503]
[1742841642777,4.77931,2092.4,2091.9,4.78022]
[1742841642955,9.77864,2092.7,2092.0,0.8175]
[1742841643138,9.77864,2092.7,2092.1,4.77967]
[1742841643343,9.77864,2092.7,2092.2,9.65756]
[1742841643561,5.0,2092.7,2092.3,4.82720891]
[1742841643744,5.0,2092.7,2092.4,4.77898]
[1742841643955,5.0,2092.7,2092.5,0.04778377]
[1742841644150,5.0,2092.7,2092.5,5.62945377]
[1742841644151,0.11093012,2092.6,2092.5,5.62945377]
[1742841644356,0.11093012,2092.6,2092.5,6.67029715]
[1742841644653,0.1228724,2093.0,2092.6,5.58154]
[1742841644852,0.1228724,2093.0,2092.9,8.58085]
[1742841646570,0.1228724,2093.0,2092.9,8.62861751]
[1742841646746,0.1228724,2093.0,2092.9,8.58085]
[1742841646948,2.4e-06,2093.0,2092.9,12.934256]
[1742841647246,0.01,2093.4,2093.2,4.77737]
[1742841647479,0.01,2093.4,2093.3,4.77714]
[1742841647875,0.01,2093.4,2093.2,4.77737]
[1742841648077,0.01,2093.4,2093.3,4.77714]
[1742841648454,0.01,2093.4,2093.2,4.77737]
[1742841648660,0.01,2093.4,2093.1,4.77758]
[1742841648852,0.01,2093.4,2093.0,5.54341]
[1742841649277,4.77522,2094.2,2093.5,0.7985]
[1742841649456,4.77392,2094.8,2093.5,0.7985]
[1742841649457,4.77445,2094.5,2093.5,0.7985]
[1742841649657,4.77571,2094.0,2093.6,4.945]
[1742841649855,9.55184,2093.9,2093.6,4.945]
[1742841650057,4.776,2093.8,2093.7,4.945]
[1742841650262,5.731184,2093.8,2093.7,4.945]
[1742841650456,4.77637,2093.7,2093.2,4.77728]
[1742841650671,4.77648,2093.6,2093.3,4.943]
[1742841650987,9.55274,2093.7,2093.3,4.943]
[1742841651163,9.55274,2093.7,2093.4,0.04776416]
[1742841651359,9.55274,2093.7,2093.3,4.943]
[1742841651360,4.77656,2093.6,2093.3,4.943]
[1742841652084,4.77674,2093.5,2093.0,0.8012]
[1742841652249,4.87232374,2093.5,2093.1,9.71358]
[1742841653158,0.09558374,2093.5,2093.1,9.71359]
[1742841653359,0.09558374,2093.5,2093.4,4.77691]
[1742841653689,4.77438,2094.6,2093.4,4.77691]
[1742841653690,4.7741,2094.7,2094.1,0.7537]
[1742841653859,4.7741,2094.7,2094.2,9.78499]
[1742841653860,4.77405,2094.7,2094.2,9.78499]
[1742841654054,4.77406,2094.7,2094.2,9.78499]
[1742841654257,4.77418,2094.6,2094.3,5.013]
[1742841654572,4.77429,2094.6,2094.4,5.023]
[1742841654958,4.7744,2094.5,2094.4,5.023]
[1742841655659,5.3244,2094.5,2094.4,5.023]
[1742841655861,4.77504,2094.3,2093.8,5.57848]
[1742841656057,4.77513,2094.2,2093.8,5.048]
[1742841656601,5.32442,2094.5,2093.8,5.048]
[1742841656602,4.77457,2094.5,2094.0,4.77553]
[1742841656756,4.77452,2094.5,2094.0,5.57769]
[1742841656962,0.8029,2094.6,2094.2,4.77497]
[1742841657172,4.77422,2094.6,2094.3,5.10774698]
[1742841657370,4.7745,2094.5,2094.4,3.0]
[1742841657662,0.0067022,2094.9,2094.3,8.06]
[1742841657860,4.77374,2094.8,2094.4,0.04774201]
[1742841658069,0.0067022,2094.9,2094.5,4.77429]
[1742841658391,4.77374,2094.8,2094.4,0.7748]
[1742841658686,4.7803222,2094.9,2094.4,0.7748]
[1742841658881,4.77375,2094.8,2094.4,0.7748]
[1742841659075,5.32064166,2094.9,2094.4,0.7748]
[1742841659390,0.0067022,2094.9,2094.8,7.77372]
[1742841659576,0.0067022,2094.9,2094.8,12.86072]
[1742841659779,0.0067022,2094.9,2094.8,13.95695796]
[1742841660279,0.0067022,2094.9,2094.8,1.09623796]
[1742841660480,0.0067022,2094.9,2094.8,6.18023796]
[1742841661795,0.0067022,2094.9,2094.8,6.22796898]
[1742841662295,0.0067022,2094.9,2094.8,6.18023796]
[1742841662892,0.0067022,2094.9,2094.8,7.62076176]
[1742841663096,0.0067022,2094.9,2094.8,12.39448176]
[1742841664215,2.2e-06,2094.9,2094.8,12.74396416]
[1742841665413,2.2e-06,2094.9,2094.8,15.74396416]
[1742841665602,0.4602022,2095.0,2094.9,7.77349]
[1742841665914,0.1228724,2095.1,2095.0,5.60146]
[1742841666286,0.1228724,2095.1,2095.0,6.70145624]
[1742841666504,0.1228724,2095.1,2095.0,11.80945624]
[1742841666681,0.1228724,2095.1,2095.0,6.70145624]
[1742841666892,0.1228724,2095.1,2095.0,14.28236043]
[1742841667304,0.1228724,2095.1,2095.0,17.28236043]
[1742841667493,2.4e-06,2095.1,2095.0,17.28236043]
[1742841667702,4.76981,2096.6,2096.0,5.5657]
[1742841668016,4.76988,2096.5,2096.1,9.95841826]
[1742841668182,4.77037,2096.3,2095.9,25.239]
[1742841668383,6.120253,2096.6,2096.1,4.77074]
[1742841668597,4.76976,2096.6,2096.0,5.138]
[1742841668795,4.85887173,2096.6,2096.0,9.90889]
[1742841668999,9.53992,2096.5,2096.1,8.285449]
[1742841669200,0.08924173,2096.6,2096.2,0.777]
[1742841669400,9.53957,2096.6,2096.3,5.138]
[1742841669603,4.77022,2096.4,2096.1,3.514789]
[1742841669814,4.77022,2096.4,2096.2,5.137]
[1742841670016,0.08952834,2096.3,2095.9,26.0121]
[1742841670219,0.08952834,2096.3,2096.0,5.136]
[1742841670419,4.77019,2096.4,2096.0,5.136]
[1742841670619,0.08920996,2096.3,2096.0,5.136]
[1742841670807,4.85953996,2096.3,2096.0,6.23547143]
[1742841671126,4.77033,2096.3,2096.0,6.23547143]
[1742841671493,4.77059,2096.2,2096.0,6.23547143]
[1742841671716,4.77008,2096.4,2096.0,6.23547143]
[1742841671918,4.77045,2096.3,2096.0,6.23547143]
[1742841672117,4.77056,2096.2,2096.1,0.50494379]
[1742841672325,4.77056,2096.2,2096.0,5.136]
[1742841672520,4.77036,2096.3,2096.0,5.136]
[1742841672894,4.77036,2096.3,2096.0,6.59160922]
[1742841673328,9.54088,2096.3,2096.0,6.59160922]
[1742841673597,4.77054,2096.2,2096.0,5.136]
[1742841673798,0.55,2096.4,2095.9,25.239]
[1742841674002,4.77099,2096.0,2095.9,30.361]
[1742841674201,6.830155,2096.0,2095.9,30.361]
[1742841674402,6.830155,2096.0,2095.9,5.122]
[1742841674621,6.830155,2096.0,2095.9,4.88190625]
[1742841674920,6.830155,2096.0,2095.1,25.9869]
[1742841674921,9.54488,2095.4,2095.1,25.9869]
[1742841675126,4.77201,2095.6,2095.5,5.122]
[1742841675522,4.77053,2096.2,2095.5,5.122]
[1742841675523,4.77124,2095.9,2095.5,10.58354456]
[1742841675724,4.77101,2096.0,2095.6,4.81960165]
[1742841675947,4.77101,2096.0,2095.6,0.04771165]
[1742841676099,4.77134,2095.9,2095.6,0.09779341]
[1742841676301,4.77134,2095.9,2095.6,0.05008176]
[1742841676604,4.77167,2095.7,2095.6,0.05008176]
[1742841680900,7.77167,2095.7,2095.6,0.05008176]
[1742841681925,8.32167,2095.7,2095.6,0.05008176]
[1742841682109,7.77167,2095.7,2095.6,0.05008176]
[1742841682922,8.32167,2095.7,2095.6,0.05008176]
[1742841683127,10.2788445,2095.7,2095.6,0.05008176]
[1742841683907,11.0308445,2095.7,2095.6,1.76e-06]
[1742841684630,11.0308445,2095.7,2094.9,5.106]
[1742841684631,4.77326,2095.0,2094.9,5.106]
[1742841685629,4.77451,2094.5,2094.3,26.0017]
[1742841685824,9.54856,2094.6,2094.4,5.101]
[1742841686142,4.7742,2094.6,2094.4,5.101]
[1742841686306,4.7744,2094.5,2094.4,5.101]
[1742841687305,4.77424,2094.6,2094.4,5.101]
[1742841688141,4.77363,2094.9,2094.4,5.101]
[1742841688331,9.54869,2094.6,2094.4,5.101]
[1742841688738,9.5487,2094.6,2094.4,5.101]
[1742841689263,4.7744,2094.5,2094.4,5.101]
[1742841692058,4.77463,2094.4,2094.3,25.228]
[1742841692344,4.77463,2094.4,2094.3,30.295]
[1742841692727,4.77405,2094.7,2094.3,38.09921]
[1742841692938,9.54818,2094.7,2094.3,38.09921]
[1742841693124,4.77379,2094.8,2094.3,33.3245]
[1742841693327,4.77379,2094.8,2094.5,4.77433]
[1742841693845,4.77379,2094.8,2094.4,8.90907184]
[1742841693846,4.77403,2094.7,2094.4,4.08685]
[1742841694018,4.77304,2095.1,2094.4,0.7544]
[1742841694219,4.77449,2094.5,2094.3,30.295]
[1742841694750,4.77463,2094.4,2094.3,30.295]
[1742841695645,4.77463,2094.4,2094.3,25.228]
[1742841695850,4.77463,2094.4,2094.0,0.02180023]
[1742841695851,0.7925,2094.5,2094.1,5.068]
[1742841696021,4.77502,2094.3,2094.1,5.068]
[1742841696347,4.77509,2094.2,2094.1,5.068]
[1742841696546,4.77532,2094.1,2094.0,0.02180023]
[1742841696720,4.77532,2094.1,2094.0,5.08980023]
[1742841697320,4.77488,2094.3,2094.0,10.37431025]
[1742841697750,4.7745,2094.5,2094.1,5.58587072]
[1742841697917,4.77489,2094.3,2094.1,0.81065072]
[1742841698124,4.77489,2094.3,2094.1,0.7629]
[1742841698349,4.7744,2094.5,2094.1,5.53813]
[1742841698560,4.7742,2094.6,2094.2,5.88870103]
[1742841698863,5.55781,2095.2,2094.3,4.82245295]
[1742841699028,4.77415,2094.7,2094.3,4.82245295]
[1742841699229,4.77426,2094.6,2094.2,5.88878103]
[1742841699426,7.77353,2094.9,2094.3,1.1426991]
[1742841699653,4.77429,2094.6,2094.3,1.1426991]
[1742841700359,9.54864,2094.6,2094.3,1.1426991]
[1742841700960,4.77429,2094.6,2094.3,1.1426991]
[1742841701159,7.77353,2094.9,2094.0,0.53078025]
[1742841701160,4.77466,2094.4,2094.0,0.53078025]
[1742841701343,4.77505,2094.3,2094.1,5.062]
[1742841701538,4.77509,2094.2,2094.1,5.062]
[1742841701867,4.77532,2094.1,2094.0,0.02180023]
[1742841702237,4.77532,2094.1,2094.0,5.08180023]
[1742841702441,4.77532,2094.1,2094.0,5.08280023]
[1742841703675,6.20785,2094.1,2094.0,0.02180023]
[1742841703961,10.56145,2094.1,2094.0,2.3e-07]
[1742841704178,4.77646,2093.6,2093.5,30.306]
[1742841704368,5.53786,2093.6,2093.5,30.306]
[1742841705942,4.77716,2093.3,2093.0,0.8261]
[1742841706254,4.77699,2093.4,2093.1,5.059]
[1742841706638,9.55408,2093.4,2093.1,5.059]
[1742841706838,4.77714,2093.3,2093.1,5.059]
[1742841707040,4.77699,2093.4,2093.1,5.059]
[1742841707241,4.77699,2093.4,2093.1,9.8366]
[1742841707540,4.77699,2093.4,2093.1,11.4844933]
[1742841707774,9.55409,2093.4,2093.1,6.7068933]
[1742841707973,4.77699,2093.4,2093.1,6.7068933]
[1742841708146,4.77699,2093.4,2093.1,5.059]
[1742841708346,4.77722,2093.3,2093.1,5.059]
[1742841708761,4.77699,2093.4,2093.1,5.059]
[1742841709440,9.55271,2093.7,2093.1,5.059]
[1742841709675,4.77735,2093.3,2093.1,5.059]
[1742841710289,9.55469,2093.3,2093.1,5.059]
[1742841710461,4.77727,2093.3,2093.1,5.059]
[1742841710664,9.55408,2093.4,2093.1,5.059]
[1742841711049,4.77717,2093.3,2093.1,5.059]
[1742841711479,4.77699,2093.4,2093.1,5.059]
[1742841711779,4.77723,2093.3,2093.1,5.059]
[1742841711976,4.77699,2093.4,2093.1,5.059]
[1742841712483,9.55406,2093.4,2093.1,5.059]
[1742841712779,4.7773,2093.3,2093.1,5.059]
[1742841713985,9.55465,2093.3,2093.1,5.059]
[1742841714193,9.55461,2093.3,2093.1,5.059]
[1742841714353,4.77737,2093.2,2093.1,5.059]
[1742841714694,4.77737,2093.2,2093.1,5.023]
[1742841714993,4.7776,2093.1,2092.8,0.8159]
[1742841715166,4.7774,2093.2,2092.9,5.022]
[1742841715353,4.7777,2093.1,2092.9,5.022]
[1742841715557,4.77783,2093.0,2092.9,5.022]
[1742841715765,4.77783,2093.0,2092.9,5.021]
[1742841716261,9.55538,2093.1,2092.9,5.021]
[1742841716460,4.7776,2093.1,2092.9,5.021]
[1742841717504,4.77783,2093.0,2092.9,5.021]
[1742841719308,4.7781,2092.9,2092.7,25.241]
[1742841719603,9.55582,2093.0,2092.8,5.003]
[1742841720280,4.77805,2092.9,2092.8,5.003]
[1742841720462,4.77783,2093.0,2092.8,5.003]
[1742841720670,4.77808,2092.9,2092.7,25.241]
[1742841720870,4.77808,2092.9,2092.8,4.995]
[1742841721500,4.77828,2092.8,2092.7,25.241]
[1742841721794,4.77828,2092.8,2092.7,30.231]
[1742841724676,4.77811,2092.9,2092.7,30.231]
[1742841724877,4.77768,2093.1,2092.7,33.2541]
[1742841725077,4.77785,2093.0,2092.7,34.0155]
[1742841725287,4.77768,2093.1,2092.7,38.79391]
[1742841725499,4.77787,2093.0,2092.7,34.0155]
[1742841725990,9.55538,2093.1,2092.7,38.79381]
[1742841726198,4.7776,2093.1,2092.7,38.79381]
[1742841726407,4.7776,2093.1,2092.7,34.0155]
[1742841726712,10.78742,2093.2,2092.8,8.17973]
[1742841726904,4.77761,2093.1,2092.8,8.17973]
[1742841727073,4.77761,2093.1,2092.8,3.40155]
[1742841727406,4.77784,2093.0,2092.7,35.77085]
[1742841727973,4.77767,2093.1,2092.7,35.77085]
[1742841728176,4.77767,2093.1,2092.8,4.77825]
[1742841728606,4.77767,2093.1,2092.7,35.77085]
[1742841728913,15.56491,2093.2,2092.8,4.7782]
[1742841729211,4.77761,2093.1,2092.7,35.77082]
[1742841729406,4.7776,2093.1,2092.7,39.825775]
[1742841729576,9.55539,2093.1,2092.7,39.825775]
[1742841729904,4.7776,2093.1,2092.7,39.825775]
[1742841730281,9.55536,2093.1,2092.7,39.825775]
[1742841730681,4.7776,2093.1,2092.7,39.825775]
[1742841730882,9.5554,2093.1,2092.7,39.825775]
[1742841732117,4.7776,2093.1,2092.7,39.825775]
[1742841733588,6.01,2093.2,2092.9,4.77788]
[1742841734506,6.01,2093.2,2092.9,9.5558]
[1742841734706,6.01,2093.2,2092.9,4.77788]
[1742841735484,6.01,2093.2,2092.8,9.2386705]
[1742841735485,10.78738,2093.2,2092.8,9.2386705]
[1742841735809,10.78738,2093.2,2092.8,14.0167905]
[1742841736033,4.77801,2093.0,2092.7,26.0024]
[1742841736236,11.57317,2093.2,2092.7,25.241]
[1742841736416,4.77805,2092.9,2092.8,4.934]
[1742841736729,5.59798,2092.8,2092.7,25.241]
[1742841736904,5.59798,2092.8,2092.7,30.176]
[1742841737102,7.113369,2092.8,2092.7,25.241]
[1742841737305,4.77897,2092.5,2092.4,0.02030948]
[1742841737708,4.77897,2092.5,2092.4,4.95230948]
[1742841738041,4.77889,2092.6,2092.4,4.95230948]
[1742841739234,4.77884,2092.6,2092.4,4.95230948]
[1742841739445,9.55769,2092.6,2092.4,4.95230948]
[1742841739764,4.77897,2092.5,2092.4,4.95230948]
[1742841740170,4.77884,2092.6,2092.4,4.95230948]
[1742841740524,9.55777,2092.6,2092.4,4.95230948]
[1742841740960,4.77884,2092.6,2092.4,4.95230948]
[1742841741769,10.7883,2092.8,2092.4,9.73132948]
[1742841741947,10.7883,2092.8,2092.5,0.7841]
[1742841742147,6.01,2092.8,2092.5,5.56299]
[1742841742461,6.01,2092.8,2092.5,0.7841]
[1742841742665,10.78833,2092.8,2092.5,0.7841]
[1742841742870,6.01,2092.8,2092.6,4.77864]
[1742841743078,6.01,2092.8,2092.6,5.92788616]
[1742841743387,6.01,2092.8,2092.7,4.77851]
[1742841743981,6.01,2092.8,2092.6,5.92788616]
[1742841744362,6.01,2093.1,2092.6,5.92792616]
[1742841744562,6.01,2093.1,2092.7,10.28049127]
[1742841744740,6.01,2093.1,2092.7,10.2327109]
[1742841745683,10.78765,2093.1,2092.7,5.4543309]
[1742841746375,10.78765,2093.1,2092.7,0.6759809]
[1742841746551,10.78765,2093.1,2092.7,4.77842]
[1742841747253,10.78765,2093.1,2092.6,5.97576733]
[1742841747581,10.78765,2093.1,2092.6,5.97563733]
[1742841747753,4.77817,2092.9,2092.7,4.893]
[1742841747948,4.77831,2092.8,2092.7,4.893]
[1742841748453,4.77831,2092.8,2092.7,4.895]
[1742841749063,9.55645,2092.9,2092.7,4.895]
[1742841749245,4.77828,2092.8,2092.7,4.895]
[1742841752181,4.77817,2092.9,2092.7,4.895]
[1742841753438,4.77828,2092.8,2092.7,4.895]
[1742841753666,4.77814,2092.9,2092.7,4.895]
[1742841753844,9.55641,2092.9,2092.7,4.895]
[1742841754367,4.77828,2092.8,2092.7,4.895]
[1742841755446,4.77806,2092.9,2092.7,4.895]
[1742841755790,6.410209,2092.9,2092.7,4.895]
[1742841756082,4.77828,2092.8,2092.7,4.895]
[1742841756486,4.77897,2092.5,2092.4,0.02030948]
[1742841756813,4.77897,2092.5,2092.4,4.88330948]
[1742841757343,5.60541,2092.6,2092.4,4.88330948]
[1742841757586,10.38431,2092.6,2092.4,4.88330948]
[1742841759208,4.77897,2092.5,2092.4,4.88330948]
[1742841760571,4.77897,2092.5,2092.4,0.02030948]
[1742841760776,5.817398,2092.5,2092.4,0.02030948]
[1742841760971,5.817398,2092.5,2092.4,4.87230948]
[1742841761270,5.817398,2092.5,2092.4,0.02030948]
[1742841761688,11.827398,2092.5,2092.4,0.02030948]
[1742841768599,12.607298,2092.5,2092.4,0.02030948]
[1742841768799,4.7792,2092.4,2092.3,4.824]
[1742841769113,7.2957308,2092.4,2092.3,4.824]
[1742841769332,7.8457308,2092.4,2092.3,4.824]
[1742841771778,4.77965,2092.2,2092.1,0.01]
[1742841771979,11.33965,2092.2,2092.1,0.01]
[1742841772173,12.16165,2092.2,2092.1,4.819]
[1742841772378,14.58534208,2092.2,2092.1,4.819]
[1742841772690,14.58534208,2092.2,2092.1,0.01]
[1742841773130,6.01,2092.2,2092.1,0.01]
[1742841775999,10.78965,2092.2,2092.1,0.01]
[1742841778316,6.01,2092.2,2092.1,0.01]
[1742841778937,10.78965,2092.2,2092.1,0.01]
[1742841782734,6.01,2092.2,2092.1,0.01]
[1742841783537,10.78965,2092.2,2092.1,0.01]
[1742841785946,6.01,2092.2,2092.1,0.01]
[1742841786947,10.78965,2092.2,2092.1,0.01]
[1742841788355,10.78965,2092.2,2092.1,4.781]
[1742841788356,13.728965,2092.2,2092.1,4.781]
[1742841791321,12.896565,2092.2,2092.1,4.781]
[1742841792248,6.01,2092.2,2092.1,9.56088]
[1742841792436,0.7849,2092.6,2092.2,5.55444]
[1742841792437,6.01,2092.6,2092.2,5.55444]
[1742841792754,11.57297,2092.9,2092.3,0.04779218]
[1742841793046,10.78807,2092.9,2092.5,5.55365]
[1742841793352,10.78807,2092.9,2092.6,4.769]
[1742841793353,6.01,2092.9,2092.6,4.769]
[1742841793550,6.01,2092.9,2092.6,10.58463149]
[1742841793846,6.01,2092.9,2092.6,15.36326149]
[1742841794051,6.01,2092.9,2092.7,4.77841]
[1742841794214,10.78747,2093.2,2092.7,4.77841]
[1742841794426,10.78738,2093.2,2092.8,0.8303]
[1742841794739,10.78738,2093.2,2092.8,2.45441122]
[1742841795140,6.01,2093.2,2092.8,2.45441122]
[1742841795350,6.01,2093.2,2092.9,4.77784]
[1742841795535,6.01,2093.2,2093.0,4.77769]
[1742841795736,6.01,2093.2,2093.1,4.767]
[1742841798183,6.01,2093.5,2093.2,4.77728]
[1742841798860,6.01,2093.5,2093.1,11.80132142]
[1742841799962,6.01,2093.5,2093.1,16.57874142]
[1742841800162,6.01,2093.5,2093.2,4.7773]
[1742841800362,6.01,2093.5,2093.1,16.57862142]
[1742841800563,6.01,2093.5,2093.2,4.7773]
[1742841802667,10.78659,2093.6,2093.1,11.80129142]
[1742841803467,10.78659,2093.6,2093.2,1.65791114]
[1742841804266,10.78659,2093.6,2093.2,6.43527114]
[1742841805968,6.01,2093.6,2093.3,4.77713]
[1742841806167,15.56264,2093.7,2093.2,6.43516114]
[1742841806771,4.77648,2093.6,2093.2,6.43516114]
[1742841806966,4.77648,2093.6,2093.2,6.43521114]
[1742841807474,4.77648,2093.6,2093.2,1.65791114]
[1742841807973,6.01,2093.7,2093.3,6.0269857]
[1742841808172,6.01,2093.7,2093.5,5.58465]
[1742841808477,6.01,2093.7,2093.6,4.728]
[1742841810642,6.01,2094.0,2093.6,4.728]
[1742841810844,11.53778,2094.5,2093.9,0.7611]
[1742841811072,11.53778,2094.5,2094.0,4.77541]
[1742841811272,4.77501,2094.3,2094.1,4.724]
[1742841811571,4.77463,2094.4,2094.1,4.724]
[1742841811572,4.77468,2094.4,2094.1,4.724]
[1742841811776,9.54948,2094.4,2094.1,4.724]
[1742841812240,4.77494,2094.3,2094.1,4.724]
[1742841812642,4.77474,2094.4,2094.1,4.724]
[1742841813194,4.77487,2094.3,2094.1,4.724]
[1742841813561,9.54995,2094.3,2094.1,4.724]
[1742841813876,4.77487,2094.3,2094.1,4.724]
[1742841814045,9.54995,2094.3,2094.1,4.724]
[1742841814246,4.77487,2094.3,2094.1,4.724]
[1742841814747,9.54991,2094.3,2094.1,4.724]
[1742841815056,4.77487,2094.3,2094.1,4.724]
[1742841815374,4.77494,2094.3,2093.8,25.25]
[1742841815561,4.77577,2094.0,2093.9,4.711]
[1742841815748,4.77577,2093.9,2093.8,25.25]
[1742841815949,5.54517,2093.9,2093.8,29.964]
[1742841816562,4.77558,2094.0,2093.8,29.964]
[1742841816763,4.77577,2093.9,2093.8,29.964]
[1742841816966,10.7838,2094.8,2094.4,4.77454]
[1742841817149,10.78386,2094.8,2094.5,4.788]
[1742841817481,6.01,2094.8,2094.5,4.788]
[1742841817881,10.7838,2094.8,2094.5,4.788]
[1742841818858,15.55769,2094.8,2094.5,4.788]
[1742841819175,10.7838,2094.8,2094.5,4.788]
[1742841819368,6.01,2094.8,2094.5,6.34695769]
[1742841819567,6.01,2094.8,2094.5,4.83574169]
[1742841820083,6.01,2094.8,2094.5,9.61007169]
[1742841820380,10.7833,2095.0,2094.5,14.38430169]
[1742841820580,10.7833,2095.0,2094.5,9.56223]
[1742841820778,10.7833,2095.0,2094.5,9.6099683]
[1742841820981,4.77357,2094.9,2094.6,1.03848683]
[1742841821491,4.77389,2094.8,2094.5,4.788]
[1742841821970,4.774,2094.7,2094.5,4.788]
[1742841822173,4.77388,2094.8,2094.5,4.788]
[1742841822978,4.77388,2094.8,2094.5,9.5624]
[1742841823272,4.77388,2094.8,2094.5,4.788]
[1742841823471,9.5472,2094.9,2094.5,11.07356]
[1742841823880,9.54724,2094.9,2094.5,11.07356]
[1742841824482,4.77387,2094.8,2094.5,6.29919]
[1742841824663,4.77387,2094.8,2094.5,1.51119]
[1742841824865,4.77387,2094.8,2094.6,4.765]
[1742841825185,4.77355,2094.9,2094.6,5.947558]